[Event "Titled Tuesday Blitz September 14 2021"]
[White "Budrewicz, Krzysztof"]
[Black "Rozman, Levy"]
[WhiteFideId "1127950"]
[BlackFideId "2039877"]
[WhiteElo "2242"]
[BlackElo "2376"]
[Result "0-1"]
[Round "09"]
[TimeControl "180+1"]
[Date "2021.09.15"]
[WhiteClock "0:00:03"]
[BlackClock "0:00:05"]

1. d4 {[%clk 0:03:00]}  g6 {[%clk 0:02:59]} 2. c4 {[%clk 0:03:00]}  Bg7 {[%clk 0:03:00]} 3. Nc3 {[%clk 0:03:00]}  c5 {[%clk 0:03:00]} 4. d5 {[%clk 0:02:58]}  Bxc3+ {[%clk 0:03:01]} 5. bxc3 {[%clk 0:02:59]}  f5 {[%clk 0:03:02]} 6. f3 {[%clk 0:02:58]}  Qa5 {[%clk 0:02:54]} 7. Qc2 {[%clk 0:02:58]}  Nf6 {[%clk 0:02:53]} 8. Bd2 {[%clk 0:02:57]}  d6 {[%clk 0:02:44]} 9. e4 {[%clk 0:02:57]}  Nbd7 {[%clk 0:02:41]} 10. exf5 {[%clk 0:02:52]}  gxf5 {[%clk 0:02:29]} 11. Qxf5 {[%clk 0:02:46]}  Qa4 {[%clk 0:02:28]} 12. Qb1 {[%clk 0:02:34]}  Ne5 {[%clk 0:02:20]} 13. Qb3 {[%clk 0:02:34]}  Bd7 {[%clk 0:02:17]} 14. h3 {[%clk 0:02:28]}  Nh5 {[%clk 0:01:53]} 15. f4 {[%clk 0:02:12]}  Ng3 {[%clk 0:01:37]} 16. fxe5 {[%clk 0:02:11]}  Qxb3 {[%clk 0:01:33]} 17. axb3 {[%clk 0:02:10]}  Nxh1 {[%clk 0:01:34]} 18. e6 {[%clk 0:02:10]}  Bc8 {[%clk 0:01:34]} 19. Ne2 {[%clk 0:01:56]}  O-O {[%clk 0:01:33]} 20. Bf4 {[%clk 0:01:50]}  b5 {[%clk 0:01:11]} 21. cxb5 {[%clk 0:01:25]}  a6 {[%clk 0:01:11]} 22. g4 {[%clk 0:01:19]}  Bb7 {[%clk 0:01:09]} 23. Bg2 {[%clk 0:01:18]}  axb5 {[%clk 0:01:09]} 24. Rxa8 {[%clk 0:01:18]}  Rxa8 {[%clk 0:01:09]} 25. Bxh1 {[%clk 0:01:18]}  Ra3 {[%clk 0:01:07]} 26. Nc1 {[%clk 0:01:18]}  c4 {[%clk 0:01:04]} 27. bxc4 {[%clk 0:01:09]}  bxc4 {[%clk 0:01:01]} 28. Bg5 {[%clk 0:00:59]}  Kf8 {[%clk 0:00:56]} 29. Be4 {[%clk 0:00:59]}  Rxc3 {[%clk 0:00:49]} 30. Ne2 {[%clk 0:00:54]}  Rxh3 {[%clk 0:00:48]} 31. Kd2 {[%clk 0:00:51]}  Bxd5 {[%clk 0:00:45]} 32. Bh6+ {[%clk 0:00:39]}  Rxh6 {[%clk 0:00:25]} 33. Bxd5 {[%clk 0:00:39]}  Rg6 {[%clk 0:00:25]} 34. Bxc4 {[%clk 0:00:31]}  Rxg4 {[%clk 0:00:24]} 35. Bd5 {[%clk 0:00:31]}  h5 {[%clk 0:00:24]} 36. Ke3 {[%clk 0:00:31]}  h4 {[%clk 0:00:22]} 37. Bf3 {[%clk 0:00:26]}  Rg5 {[%clk 0:00:19]} 38. Nf4 {[%clk 0:00:24]}  Kg7 {[%clk 0:00:18]} 39. Kf2 {[%clk 0:00:14]}  Kf6 {[%clk 0:00:14]} 40. Bg2 {[%clk 0:00:08]}  Ke5 {[%clk 0:00:08]} 41. Nd3+ {[%clk 0:00:04]}  Kxe6 {[%clk 0:00:07]} 42. Bh3+ {[%clk 0:00:03]}  Kf6 {[%clk 0:00:08]} 43. Nf4 {[%clk 0:00:03]}  d5 {[%clk 0:00:05]} 0-1


[Site "https://www.chess.com"]

[Event "Titled Tuesday Blitz September 14 2021"]
[White "Csonka, Balazs"]
[Black "Yaksin, Oleg"]
[WhiteFideId "742910"]
[BlackFideId "24105880"]
[WhiteElo "2404"]
[BlackElo "2310"]
[Result "1-0"]
[Round "09"]
[TimeControl "180+1"]
[Date "2021.09.15"]
[WhiteClock "0:00:04"]
[BlackClock "0:00:03"]

1. Nf3 {[%clk 0:03:00]}  Nf6 {[%clk 0:02:57]} 2. c4 {[%clk 0:02:55]}  e6 {[%clk 0:02:51]} 3. g3 {[%clk 0:02:54]}  b6 {[%clk 0:02:48]} 4. Bg2 {[%clk 0:02:52]}  Bb7 {[%clk 0:02:48]} 5. O-O {[%clk 0:02:52]}  c5 {[%clk 0:02:47]} 6. d4 {[%clk 0:02:49]}  cxd4 {[%clk 0:02:45]} 7. Qxd4 {[%clk 0:02:50]}  Bc5 {[%clk 0:02:36]} 8. Qd3 {[%clk 0:02:23]}  Be4 {[%clk 0:02:20]} 9. Qd2 {[%clk 0:02:22]}  O-O {[%clk 0:02:19]} 10. Nc3 {[%clk 0:02:17]}  Bb7 {[%clk 0:02:07]} 11. b3 {[%clk 0:02:05]}  Ne4 {[%clk 0:01:41]} 12. Nxe4 {[%clk 0:01:58]}  Bxe4 {[%clk 0:01:42]} 13. Bb2 {[%clk 0:01:56]}  Nc6 {[%clk 0:01:37]} 14. Rfd1 {[%clk 0:01:37]}  d5 {[%clk 0:01:11]} 15. cxd5 {[%clk 0:01:29]}  exd5 {[%clk 0:01:06]} 16. Nd4 {[%clk 0:01:14]}  Nxd4 {[%clk 0:00:51]} 17. Bxd4 {[%clk 0:01:13]}  Qe7 {[%clk 0:00:51]} 18. Bxc5 {[%clk 0:00:58]}  Qxc5 {[%clk 0:00:40]} 19. Rac1 {[%clk 0:00:54]}  Qa3 {[%clk 0:00:31]} 20. h4 {[%clk 0:00:27]}  h6 {[%clk 0:00:13]} 21. Rc3 {[%clk 0:00:22]}  Rae8 {[%clk 0:00:12]} 22. Re3 {[%clk 0:00:20]}  Bxg2 {[%clk 0:00:12]} 23. Rxe8 {[%clk 0:00:20]}  Rxe8 {[%clk 0:00:13]} 24. Kxg2 {[%clk 0:00:20]}  Qc5 {[%clk 0:00:12]} 25. e3 {[%clk 0:00:20]}  Re5 {[%clk 0:00:04]} 26. Qd4 {[%clk 0:00:18]}  Qe7 {[%clk 0:00:02]} 27. Rd3 {[%clk 0:00:13]}  g5 {[%clk 0:00:03]} 28. hxg5 {[%clk 0:00:13]}  hxg5 {[%clk 0:00:04]} 29. Qg4 {[%clk 0:00:12]}  Kg7 {[%clk 0:00:04]} 30. Qf3 {[%clk 0:00:11]}  Kg6 {[%clk 0:00:04]} 31. Rxd5 {[%clk 0:00:11]}  Rxd5 {[%clk 0:00:05]} 32. Qxd5 {[%clk 0:00:12]}  f6 {[%clk 0:00:06]} 33. Qa8 {[%clk 0:00:11]}  a5 {[%clk 0:00:05]} 34. Qg8+ {[%clk 0:00:10]}  Kh6 {[%clk 0:00:04]} 35. Qh8+ {[%clk 0:00:11]}  Kg6 {[%clk 0:00:01]} 36. Qg8+ {[%clk 0:00:11]}  Kh6 {[%clk 0:00:01]} 37. Qd5 {[%clk 0:00:11]}  Kg6 {[%clk 0:00:01]} 38. a4 {[%clk 0:00:11]}  Qe8 {[%clk 0:00:02]} 39. Qd3+ {[%clk 0:00:10]}  Kg7 {[%clk 0:00:02]} 40. Qd4 {[%clk 0:00:11]}  Kg6 {[%clk 0:00:02]} 41. Qxb6 {[%clk 0:00:10]}  Qe4+ {[%clk 0:00:03]} 42. Kh2 {[%clk 0:00:07]}  Qf3 {[%clk 0:00:04]} 43. Kg1 {[%clk 0:00:07]}  Qd1+ {[%clk 0:00:01]} 44. Kg2 {[%clk 0:00:07]}  Qd5+ {[%clk 0:00:02]} 45. Kh2 {[%clk 0:00:06]}  Qf3 {[%clk 0:00:02]} 46. e4 {[%clk 0:00:06]}  Qxe4 {[%clk 0:00:02]} 47. Qxa5 {[%clk 0:00:05]}  Qc2 {[%clk 0:00:03]} 48. Qb6 {[%clk 0:00:04]} 1-0


[Site "https://www.chess.com"]

[Event "Titled Tuesday Blitz September 14 2021"]
[White "Goltsev, Dmitry"]
[Black "Krysa, Leandro"]
[WhiteFideId "24176710"]
[BlackFideId "116807"]
[WhiteElo "2334"]
[BlackElo "2490"]
[Result "1-0"]
[Round "09"]
[TimeControl "180+1"]
[Date "2021.09.15"]
[WhiteClock "0:00:06"]
[BlackClock "0:00:03"]

1. e4 {[%clk 0:02:59]}  c5 {[%clk 0:02:59]} 2. Nf3 {[%clk 0:02:59]}  Nc6 {[%clk 0:03:00]} 3. d4 {[%clk 0:02:59]}  cxd4 {[%clk 0:03:00]} 4. Nxd4 {[%clk 0:03:00]}  g6 {[%clk 0:03:01]} 5. Nc3 {[%clk 0:03:00]}  Bg7 {[%clk 0:03:00]} 6. Be3 {[%clk 0:03:00]}  Nf6 {[%clk 0:03:00]} 7. Be2 {[%clk 0:02:59]}  O-O {[%clk 0:02:59]} 8. O-O {[%clk 0:02:58]}  d5 {[%clk 0:02:58]} 9. exd5 {[%clk 0:02:57]}  Nxd5 {[%clk 0:02:58]} 10. Nxd5 {[%clk 0:02:58]}  Qxd5 {[%clk 0:02:58]} 11. Bf3 {[%clk 0:02:58]}  Qc4 {[%clk 0:02:58]} 12. c3 {[%clk 0:02:53]}  Nxd4 {[%clk 0:02:31]} 13. cxd4 {[%clk 0:02:49]}  Rd8 {[%clk 0:02:28]} 14. Re1 {[%clk 0:02:18]}  Be6 {[%clk 0:02:14]} 15. Bxb7 {[%clk 0:02:06]}  Rab8 {[%clk 0:02:12]} 16. Qf3 {[%clk 0:02:05]}  Bxd4 {[%clk 0:01:52]} 17. Bf4 {[%clk 0:01:36]}  Bxb2 {[%clk 0:00:43]} 18. Rab1 {[%clk 0:01:20]}  Rxb7 {[%clk 0:00:24]} 19. Qxb7 {[%clk 0:01:17]}  Bf6 {[%clk 0:00:15]} 20. Be3 {[%clk 0:01:01]}  Qxa2 {[%clk 0:00:13]} 21. Qxa7 {[%clk 0:01:00]}  Qxa7 {[%clk 0:00:09]} 22. Bxa7 {[%clk 0:01:01]}  h5 {[%clk 0:00:09]} 23. Rb8 {[%clk 0:00:57]}  Rxb8 {[%clk 0:00:09]} 24. Bxb8 {[%clk 0:00:57]}  Kg7 {[%clk 0:00:09]} 25. Ba7 {[%clk 0:00:55]}  Bd5 {[%clk 0:00:09]} 26. f3 {[%clk 0:00:54]}  e6 {[%clk 0:00:09]} 27. Kf2 {[%clk 0:00:50]}  Be7 {[%clk 0:00:10]} 28. Bd4+ {[%clk 0:00:32]}  Bf6 {[%clk 0:00:10]} 29. Be3 {[%clk 0:00:32]}  Bh4+ {[%clk 0:00:09]} 30. g3 {[%clk 0:00:31]}  Bf6 {[%clk 0:00:10]} 31. Rd1 {[%clk 0:00:30]}  Be7 {[%clk 0:00:10]} 32. Bd4+ {[%clk 0:00:28]}  Bf6 {[%clk 0:00:11]} 33. Bc5 {[%clk 0:00:28]}  Bd8 {[%clk 0:00:10]} 34. h4 {[%clk 0:00:15]}  Bf6 {[%clk 0:00:10]} 35. Ke3 {[%clk 0:00:14]}  Bd8 {[%clk 0:00:10]} 36. Bd6 {[%clk 0:00:14]}  Bf6 {[%clk 0:00:10]} 37. Rb1 {[%clk 0:00:13]}  Bd8 {[%clk 0:00:09]} 38. Rb8 {[%clk 0:00:14]}  Bf6 {[%clk 0:00:09]} 39. Bf4 {[%clk 0:00:13]}  Be7 {[%clk 0:00:08]} 40. Be5+ {[%clk 0:00:11]}  Bf6 {[%clk 0:00:08]} 41. f4 {[%clk 0:00:09]}  Ba2 {[%clk 0:00:03]} 42. Kd4 {[%clk 0:00:07]}  Bd5 {[%clk 0:00:03]} 43. Kc5 {[%clk 0:00:07]}  Bxe5 {[%clk 0:00:03]} 44. fxe5 {[%clk 0:00:08]}  g5 {[%clk 0:00:03]} 45. hxg5 {[%clk 0:00:08]}  Kg6 {[%clk 0:00:03]} 46. Rg8+ {[%clk 0:00:08]}  Kf5 {[%clk 0:00:03]} 47. Kd6 {[%clk 0:00:09]}  Kg4 {[%clk 0:00:04]} 48. Rg7 {[%clk 0:00:08]}  Kxg3 {[%clk 0:00:04]} 49. Rxf7 {[%clk 0:00:08]}  Be4 {[%clk 0:00:04]} 50. Kxe6 {[%clk 0:00:08]}  h4 {[%clk 0:00:04]} 51. Rf8 {[%clk 0:00:05]}  h3 {[%clk 0:00:03]} 52. Rh8 {[%clk 0:00:05]}  h2 {[%clk 0:00:03]} 53. Kf6 {[%clk 0:00:06]}  Bg2 {[%clk 0:00:03]} 54. Rxh2 {[%clk 0:00:05]}  Kxh2 {[%clk 0:00:03]} 55. g6 {[%clk 0:00:06]}  Bd5 {[%clk 0:00:03]} 56. e6 {[%clk 0:00:06]} 1-0


[Site "https://www.chess.com"]

[Event "Titled Tuesday Blitz September 14 2021"]
[White "Kobalia, Mikhail"]
[Black "Rastbod, Ali"]
[WhiteFideId "4119150"]
[BlackFideId "12567477"]
[WhiteElo "2626"]
[BlackElo "2226"]
[Result "1-0"]
[Round "09"]
[TimeControl "180+1"]
[Date "2021.09.15"]
[WhiteClock "0:01:25"]
[BlackClock "0:00:10"]

1. e4 {[%clk 0:03:00]}  e6 {[%clk 0:02:58]} 2. d3 {[%clk 0:03:00]}  d5 {[%clk 0:02:58]} 3. Nd2 {[%clk 0:03:01]}  Nf6 {[%clk 0:02:58]} 4. Ngf3 {[%clk 0:03:00]}  Nc6 {[%clk 0:02:58]} 5. c3 {[%clk 0:03:00]}  a5 {[%clk 0:02:58]} 6. e5 {[%clk 0:02:55]}  Nd7 {[%clk 0:02:58]} 7. d4 {[%clk 0:02:55]}  f6 {[%clk 0:02:59]} 8. Bb5 {[%clk 0:02:55]}  Be7 {[%clk 0:02:57]} 9. O-O {[%clk 0:02:53]}  O-O {[%clk 0:02:56]} 10. Re1 {[%clk 0:02:52]}  fxe5 {[%clk 0:02:41]} 11. dxe5 {[%clk 0:02:52]}  Qe8 {[%clk 0:02:37]} 12. Nf1 {[%clk 0:02:51]}  Qf7 {[%clk 0:02:05]} 13. Ng3 {[%clk 0:02:46]}  Nc5 {[%clk 0:01:38]} 14. Qc2 {[%clk 0:02:43]}  h6 {[%clk 0:01:23]} 15. Be3 {[%clk 0:02:41]}  Bd7 {[%clk 0:01:21]} 16. a4 {[%clk 0:02:38]}  g5 {[%clk 0:01:18]} 17. h3 {[%clk 0:02:35]}  Rfd8 {[%clk 0:01:13]} 18. Nh2 {[%clk 0:02:30]}  Qh7 {[%clk 0:01:07]} 19. Qd1 {[%clk 0:02:27]}  Rf8 {[%clk 0:00:35]} 20. Ng4 {[%clk 0:02:26]}  Qg6 {[%clk 0:00:30]} 21. Bxc5 {[%clk 0:01:57]}  Bxc5 {[%clk 0:00:28]} 22. Nh5 {[%clk 0:01:58]}  Qxh5 {[%clk 0:00:15]} 23. Nf6+ {[%clk 0:01:56]}  Rxf6 {[%clk 0:00:14]} 24. Qxh5 {[%clk 0:01:56]}  Rxf2 {[%clk 0:00:15]} 25. Qg6+ {[%clk 0:01:52]}  Kh8 {[%clk 0:00:11]} 26. Qxh6+ {[%clk 0:01:52]}  Kg8 {[%clk 0:00:11]} 27. Qxg5+ {[%clk 0:01:52]}  Kh8 {[%clk 0:00:12]} 28. Qh6+ {[%clk 0:01:41]}  Kg8 {[%clk 0:00:11]} 29. Kh1 {[%clk 0:01:41]}  Raf8 {[%clk 0:00:10]} 30. Rf1 {[%clk 0:01:25]} 1-0


[Site "https://www.chess.com"]

[Event "Titled Tuesday Blitz September 14 2021"]
[White "Lashkin, Jegor"]
[Black "Nimrod_Veinberg"]
[WhiteFideId "13907808"]
[WhiteElo "2293"]
[BlackElo "2745"]
[Result "1-0"]
[Round "09"]
[TimeControl "180+1"]
[Date "2021.09.15"]
[WhiteClock "0:00:11"]
[BlackClock "0:00:17"]

1. d4 {[%clk 0:03:00]}  Nf6 {[%clk 0:02:58]} 2. c4 {[%clk 0:03:00]}  e6 {[%clk 0:02:58]} 3. Nf3 {[%clk 0:03:01]}  d5 {[%clk 0:02:58]} 4. Nc3 {[%clk 0:03:01]}  dxc4 {[%clk 0:02:58]} 5. e4 {[%clk 0:03:00]}  b5 {[%clk 0:02:58]} 6. e5 {[%clk 0:02:59]}  Nd5 {[%clk 0:02:58]} 7. Nxb5 {[%clk 0:02:59]}  Nb6 {[%clk 0:02:58]} 8. Be2 {[%clk 0:02:58]}  Nc6 {[%clk 0:02:58]} 9. Be3 {[%clk 0:02:57]}  Be7 {[%clk 0:02:30]} 10. a3 {[%clk 0:02:57]}  Bb7 {[%clk 0:02:21]} 11. Qc2 {[%clk 0:02:52]}  g5 {[%clk 0:02:14]} 12. h3 {[%clk 0:02:41]}  Qd7 {[%clk 0:02:08]} 13. Bxc4 {[%clk 0:02:05]}  a6 {[%clk 0:02:04]} 14. d5 {[%clk 0:01:43]}  exd5 {[%clk 0:01:53]} 15. Bd3 {[%clk 0:01:34]}  axb5 {[%clk 0:01:51]} 16. Bf5 {[%clk 0:01:18]}  Qd8 {[%clk 0:01:51]} 17. e6 {[%clk 0:01:18]}  Nc4 {[%clk 0:01:44]} 18. exf7+ {[%clk 0:01:09]}  Kxf7 {[%clk 0:01:45]} 19. O-O {[%clk 0:01:06]}  Kg7 {[%clk 0:01:32]} 20. Bd4+ {[%clk 0:01:00]}  Bf6 {[%clk 0:01:29]} 21. Bc5 {[%clk 0:00:51]}  Ne7 {[%clk 0:00:58]} 22. Bd3 {[%clk 0:00:44]}  Ng6 {[%clk 0:00:47]} 23. Nd4 {[%clk 0:00:42]}  Ra6 {[%clk 0:00:40]} 24. b3 {[%clk 0:00:38]}  Bc8 {[%clk 0:00:24]} 25. bxc4 {[%clk 0:00:34]}  dxc4 {[%clk 0:00:25]} 26. Bxg6 {[%clk 0:00:24]}  hxg6 {[%clk 0:00:25]} 27. Rad1 {[%clk 0:00:24]}  Qd5 {[%clk 0:00:25]} 28. Bb4 {[%clk 0:00:18]}  Bxh3 {[%clk 0:00:17]} 29. Nf3 {[%clk 0:00:11]} 1-0


[Site "https://www.chess.com"]

[Event "Titled Tuesday Blitz September 14 2021"]
[White "Maghsoodloo, Parham"]
[Black "Kezin, Roman"]
[WhiteFideId "12539929"]
[BlackFideId "24124621"]
[WhiteElo "2601"]
[BlackElo "2570"]
[Result "0-1"]
[Round "09"]
[TimeControl "180+1"]
[Date "2021.09.15"]
[WhiteClock "0:00:02"]
[BlackClock "0:00:43"]

1. d4 {[%clk 0:03:00]}  d5 {[%clk 0:02:59]} 2. c4 {[%clk 0:02:53]}  e6 {[%clk 0:02:59]} 3. Nf3 {[%clk 0:02:52]}  Nf6 {[%clk 0:02:59]} 4. g3 {[%clk 0:02:52]}  Be7 {[%clk 0:02:59]} 5. Bg2 {[%clk 0:02:52]}  O-O {[%clk 0:03:00]} 6. O-O {[%clk 0:02:52]}  dxc4 {[%clk 0:03:00]} 7. Qc2 {[%clk 0:02:53]}  b5 {[%clk 0:03:00]} 8. a4 {[%clk 0:02:53]}  b4 {[%clk 0:03:00]} 9. Nbd2 {[%clk 0:02:53]}  Bb7 {[%clk 0:02:52]} 10. Nxc4 {[%clk 0:02:44]}  c5 {[%clk 0:02:52]} 11. Rd1 {[%clk 0:02:41]}  Nbd7 {[%clk 0:02:48]} 12. Bf4 {[%clk 0:01:54]}  Be4 {[%clk 0:02:27]} 13. Qd2 {[%clk 0:01:49]}  Nb6 {[%clk 0:02:24]} 14. Na5 {[%clk 0:01:45]}  c4 {[%clk 0:02:18]} 15. Ne5 {[%clk 0:01:30]}  Bxg2 {[%clk 0:02:17]} 16. Kxg2 {[%clk 0:01:31]}  Qd5+ {[%clk 0:02:05]} 17. f3 {[%clk 0:01:30]}  Rac8 {[%clk 0:02:04]} 18. Nac6 {[%clk 0:01:20]}  Rxc6 {[%clk 0:02:04]} 19. a5 {[%clk 0:01:19]}  Nbd7 {[%clk 0:01:57]} 20. Nxc6 {[%clk 0:01:15]}  Qxc6 {[%clk 0:01:57]} 21. e4 {[%clk 0:01:15]}  Rc8 {[%clk 0:01:38]} 22. d5 {[%clk 0:01:08]}  exd5 {[%clk 0:01:34]} 23. exd5 {[%clk 0:01:09]}  Qb5 {[%clk 0:01:30]} 24. d6 {[%clk 0:01:08]}  Bf8 {[%clk 0:01:31]} 25. a6 {[%clk 0:01:02]}  Nc5 {[%clk 0:01:29]} 26. Qe3 {[%clk 0:00:37]}  Re8 {[%clk 0:01:06]} 27. Qd4 {[%clk 0:00:13]}  Nb3 {[%clk 0:00:56]} 28. Qxa7 {[%clk 0:00:12]}  Nxa1 {[%clk 0:00:53]} 29. Rxa1 {[%clk 0:00:04]}  Re2+ {[%clk 0:00:54]} 30. Kg1 {[%clk 0:00:02]}  Qh5 {[%clk 0:00:43]} 31. g4 {[%clk 0:00:02]}  Qh3 {[%clk 0:00:43]} 0-1


[Site "https://www.chess.com"]

[Event "Titled Tuesday Blitz September 14 2021"]
[White "Nakamura, Hikaru"]
[Black "Khusnutdinov, Rustam"]
[WhiteFideId "2016192"]
[BlackFideId "13701703"]
[WhiteElo "3191"]
[BlackElo "2906"]
[Result "0-1"]
[Round "09"]
[TimeControl "180+1"]
[Date "2021.09.15"]
[WhiteClock "0:00:22"]
[BlackClock "0:00:32"]

1. Nf3 {[%clk 0:03:00]}  d5 {[%clk 0:02:59]} 2. e3 {[%clk 0:03:00]}  Bg4 {[%clk 0:02:57]} 3. c4 {[%clk 0:02:59]}  c6 {[%clk 0:02:57]} 4. Qb3 {[%clk 0:02:52]}  Qc7 {[%clk 0:02:56]} 5. cxd5 {[%clk 0:02:38]}  Bxf3 {[%clk 0:02:55]} 6. gxf3 {[%clk 0:02:36]}  cxd5 {[%clk 0:02:55]} 7. Nc3 {[%clk 0:02:36]}  e6 {[%clk 0:02:55]} 8. d4 {[%clk 0:02:34]}  Nc6 {[%clk 0:02:54]} 9. Bd2 {[%clk 0:02:34]}  Nf6 {[%clk 0:02:52]} 10. Rc1 {[%clk 0:02:34]}  Bb4 {[%clk 0:02:18]} 11. Bb5 {[%clk 0:02:09]}  Be7 {[%clk 0:01:58]} 12. Na4 {[%clk 0:01:41]}  O-O {[%clk 0:01:55]} 13. O-O {[%clk 0:01:42]}  Rfc8 {[%clk 0:01:46]} 14. Bxc6 {[%clk 0:01:42]}  bxc6 {[%clk 0:01:47]} 15. Qd3 {[%clk 0:01:41]}  Nd7 {[%clk 0:01:45]} 16. e4 {[%clk 0:01:38]}  Bd6 {[%clk 0:01:41]} 17. e5 {[%clk 0:01:30]}  Be7 {[%clk 0:01:39]} 18. b4 {[%clk 0:01:30]}  Qd8 {[%clk 0:01:39]} 19. Rc2 {[%clk 0:01:27]}  Nb6 {[%clk 0:01:32]} 20. Nb2 {[%clk 0:01:27]}  Rc7 {[%clk 0:01:12]} 21. Rfc1 {[%clk 0:01:27]}  Rac8 {[%clk 0:01:12]} 22. a4 {[%clk 0:01:27]}  Nd7 {[%clk 0:01:02]} 23. a5 {[%clk 0:01:20]}  Nf8 {[%clk 0:01:01]} 24. f4 {[%clk 0:01:14]}  Ng6 {[%clk 0:01:01]} 25. Qa6 {[%clk 0:01:04]}  Nh4 {[%clk 0:00:55]} 26. Kh1 {[%clk 0:01:02]}  Nf5 {[%clk 0:00:52]} 27. Rxc6 {[%clk 0:00:47]}  Rxc6 {[%clk 0:00:48]} 28. Rxc6 {[%clk 0:00:48]}  Rxc6 {[%clk 0:00:47]} 29. Qxc6 {[%clk 0:00:49]}  Nxd4 {[%clk 0:00:47]} 30. Qb7 {[%clk 0:00:49]}  Bf8 {[%clk 0:00:43]} 31. Be3 {[%clk 0:00:46]}  Nf5 {[%clk 0:00:38]} 32. Bxa7 {[%clk 0:00:33]}  Qh4 {[%clk 0:00:38]} 33. Qc8 {[%clk 0:00:22]}  Qh3 {[%clk 0:00:32]} 0-1


[Site "https://www.chess.com"]

[Event "Titled Tuesday Blitz September 14 2021"]
[White "Perez Gormaz, Matias"]
[Black "Dvirnyy, Danyyil"]
[WhiteFideId "3406342"]
[BlackFideId "817570"]
[WhiteElo "2352"]
[BlackElo "2531"]
[Result "0-1"]
[Round "09"]
[TimeControl "180+1"]
[Date "2021.09.15"]
[WhiteClock "0:00:01"]
[BlackClock "0:00:08"]

1. e4 {[%clk 0:03:00]}  e5 {[%clk 0:02:58]} 2. Nf3 {[%clk 0:03:01]}  Nc6 {[%clk 0:02:59]} 3. Bb5 {[%clk 0:03:01]}  a6 {[%clk 0:02:58]} 4. Ba4 {[%clk 0:03:02]}  Nf6 {[%clk 0:02:59]} 5. O-O {[%clk 0:03:02]}  Be7 {[%clk 0:03:00]} 6. d3 {[%clk 0:03:02]}  d6 {[%clk 0:02:56]} 7. c3 {[%clk 0:03:02]}  O-O {[%clk 0:02:55]} 8. Re1 {[%clk 0:03:02]}  Re8 {[%clk 0:02:53]} 9. h3 {[%clk 0:03:01]}  Bf8 {[%clk 0:02:53]} 10. Bg5 {[%clk 0:03:01]}  h6 {[%clk 0:02:53]} 11. Bh4 {[%clk 0:03:00]}  g6 {[%clk 0:02:52]} 12. Nbd2 {[%clk 0:02:49]}  Bd7 {[%clk 0:02:47]} 13. d4 {[%clk 0:02:40]}  Bg7 {[%clk 0:02:46]} 14. Bc2 {[%clk 0:02:33]}  Qc8 {[%clk 0:02:35]} 15. Kh2 {[%clk 0:02:19]}  Nh5 {[%clk 0:02:34]} 16. Nf1 {[%clk 0:02:08]}  Nf4 {[%clk 0:02:33]} 17. Bg3 {[%clk 0:01:53]}  Nh5 {[%clk 0:02:31]} 18. Bh4 {[%clk 0:01:45]}  a5 {[%clk 0:02:29]} 19. a3 {[%clk 0:01:41]}  a4 {[%clk 0:02:25]} 20. Ne3 {[%clk 0:01:21]}  Ne7 {[%clk 0:01:56]} 21. dxe5 {[%clk 0:01:04]}  dxe5 {[%clk 0:01:56]} 22. Bd3 {[%clk 0:00:33]}  Nf4 {[%clk 0:01:50]} 23. Bc4 {[%clk 0:00:33]}  Be6 {[%clk 0:01:29]} 24. Bg3 {[%clk 0:00:27]}  Bxc4 {[%clk 0:01:17]} 25. Nxc4 {[%clk 0:00:27]}  Qe6 {[%clk 0:01:17]} 26. Ne3 {[%clk 0:00:15]}  Red8 {[%clk 0:01:18]} 27. Qc2 {[%clk 0:00:15]}  Nd3 {[%clk 0:01:12]} 28. Red1 {[%clk 0:00:14]}  Nc5 {[%clk 0:01:12]} 29. Rab1 {[%clk 0:00:12]}  c6 {[%clk 0:01:09]} 30. Ng4 {[%clk 0:00:11]}  f6 {[%clk 0:00:57]} 31. Ne3 {[%clk 0:00:11]}  h5 {[%clk 0:00:57]} 32. Qe2 {[%clk 0:00:09]}  Bh6 {[%clk 0:00:55]} 33. Nc4 {[%clk 0:00:09]}  b5 {[%clk 0:00:55]} 34. Ne3 {[%clk 0:00:07]}  Nb3 {[%clk 0:00:50]} 35. Nc2 {[%clk 0:00:06]}  Kf7 {[%clk 0:00:47]} 36. Nb4 {[%clk 0:00:06]}  c5 {[%clk 0:00:44]} 37. Nc2 {[%clk 0:00:05]}  c4 {[%clk 0:00:38]} 38. Nfe1 {[%clk 0:00:04]}  Nc6 {[%clk 0:00:32]} 39. f3 {[%clk 0:00:03]}  Bg5 {[%clk 0:00:24]} 40. Qf2 {[%clk 0:00:04]}  Ne7 {[%clk 0:00:11]} 41. h4 {[%clk 0:00:04]}  Bh6 {[%clk 0:00:11]} 42. Nb4 {[%clk 0:00:04]}  f5 {[%clk 0:00:09]} 43. exf5 {[%clk 0:00:02]}  gxf5 {[%clk 0:00:10]} 44. Qe2 {[%clk 0:00:01]}  f4 {[%clk 0:00:09]} 45. Bf2 {[%clk 0:00:02]}  Nf5 {[%clk 0:00:09]} 46. Qe4 {[%clk 0:00:02]}  Ne3 {[%clk 0:00:08]} 47. Bxe3 {[%clk 0:00:02]}  fxe3 {[%clk 0:00:09]} 48. Nec2 {[%clk 0:00:02]}  Nd2 {[%clk 0:00:09]} 49. Qh7+ {[%clk 0:00:02]}  Kf8 {[%clk 0:00:09]} 50. Nxe3 {[%clk 0:00:01]}  Rd7 {[%clk 0:00:08]} 0-1


[Site "https://www.chess.com"]